fUSD/lending_fUSD_20250110
["ID","MTS","AMOUNT","RATE_DAILY","PERIOD"]
[348366192,1736470232289,-307.81256994,9.122e-05,2]
[348366193,1736470232306,-278.06409137,9.122e-05,2]
[348366194,1736470232317,-3137.95752079,9.122e-05,2]
[348366195,1736470232421,-1575.27955773,9.122e-05,2]
[348366196,1736470232432,-254.46,9.122e-05,2]
[348366197,1736470232443,-1151.55012815,9.122e-05,2]
[348366198,1736470232455,-256.7011023,9.122e-05,2]
[348366199,1736470232467,-281.28988996,9.122e-05,2]
[348366200,1736470232532,-10533.61196256,9.122e-05,2]
[348366201,1736470232544,-5868.20264152,9.122e-05,2]
[348366202,1736470232554,-250.0,9.184e-05,2]
[348366203,1736470232564,-1000.0,9.236e-05,2]
[348366204,1736470232574,-297.77945212,9.327e-05,2]
[348366205,1736470232593,-101.11054788,9.327e-05,2]
[348366206,1736470232602,-150.0,9.699e-05,2]
[348366207,1736470232611,-3148.88945212,9.736e-05,2]
[348366208,1736470232623,-339.624,9.736e-05,2]
[348366222,1736470238639,-738.90825107,9.736e-05,2]
[348366223,1736470238651,-250.49,9.736e-05,2]
[348366224,1736470238725,-500.0,9.736e-05,2]
[348366225,1736470238759,-6441.65827,9.736e-05,2]
[348366226,1736470238771,-500.0,9.736e-05,2]
[348366227,1736470238783,-1081.89339312,9.736e-05,2]
[348366230,1736470240184,-928.1963079,9.736e-05,2]
[348366231,1736470240240,-333.58518724,9.736e-05,2]
[348366232,1736470240251,-634.97923855,9.736e-05,2]
[348366233,1736470240261,-417.6647,9.738e-05,2]
[348366234,1736470240270,-150.0,9.835e-05,2]
[348366235,1736470240279,-500.0,9.835e-05,2]
[348366236,1736470240287,-838.08,9.835e-05,2]
[348366237,1736470240297,-1116.57,9.835e-05,2]
[348366238,1736470240306,-500.0,9.835e-05,2]
[348366239,1736470240315,-531.16070257,9.836e-05,2]
[348366240,1736470240344,-1139.15929743,9.836e-05,2]
[348366241,1736470240353,-1672.49,9.836e-05,2]
[348366242,1736470240363,-1002.27,9.836e-05,2]
[348366243,1736470240372,-500.0,9.836e-05,2]
[348366244,1736470240382,-500.0,9.836e-05,2]
[348366245,1736470240391,-500.0,9.836e-05,2]
[348366246,1736470240400,-3335.35,9.836e-05,2]
[348366247,1736470240410,-57.99311806,9.836e-05,2]
[348366248,1736470240421,-442.00688194,9.836e-05,2]
[348366249,1736470240431,-556.27,9.836e-05,2]
[348366250,1736470240440,-500.0,9.836e-05,2]
[348366251,1736470240449,-500.0,9.836e-05,2]
[348366252,1736470240458,-500.0,9.836e-05,2]
[348366253,1736470240468,-500.0,9.836e-05,2]
[348366254,1736470240478,-500.0,9.836e-05,2]
[348366255,1736470240487,-1163.37,9.836e-05,2]
[348366256,1736470240497,-500.0,9.836e-05,2]
[348366257,1736470240506,-500.0,9.836e-05,2]
[348366258,1736470240516,-500.0,9.836e-05,2]
[348366259,1736470240525,-500.0,9.836e-05,2]
[348366260,1736470240535,-500.0,9.836e-05,2]
[348366261,1736470240544,-500.0,9.836e-05,2]
[348366262,1736470240553,-500.0,9.836e-05,2]
[348366263,1736470240563,-500.0,9.836e-05,2]
[348366264,1736470240572,-677.65,9.836e-05,2]
[348366265,1736470240582,-320.74,9.836e-05,2]
[348366266,1736470240591,-500.0,9.836e-05,2]
[348366267,1736470240600,-500.0,9.836e-05,2]
[348366268,1736470240609,-500.0,9.836e-05,2]
[348366269,1736470240618,-500.0,9.836e-05,2]
[348366270,1736470240628,-599.27035103,9.836e-05,2]
[348366271,1736470240637,-558.69,9.836e-05,2]
[348366272,1736470240646,-500.0,9.836e-05,2]
[348366273,1736470240655,-504.92418801,9.836e-05,2]
[348366274,1736470240664,-500.0,9.836e-05,2]
[348366275,1736470240676,-500.0,9.836e-05,2]
[348366276,1736470240687,-500.0,9.836e-05,2]
[348366277,1736470240696,-593.15,9.836e-05,2]
[348366278,1736470240706,-500.0,9.836e-05,2]
[348366279,1736470240717,-500.0,9.836e-05,2]
[348366280,1736470240726,-3029.01,9.836e-05,2]
[348366281,1736470240735,-551.2,9.836e-05,2]
[348366283,1736470240745,-500.0,9.836e-05,2]
[348366285,1736470240754,-500.0,9.836e-05,2]
[348366287,1736470240763,-500.0,9.836e-05,2]
[348366289,1736470240773,-500.0,9.836e-05,2]
[348366290,1736470240782,-500.0,9.836e-05,2]
[348366291,1736470240791,-500.0,9.836e-05,2]
[348366292,1736470240800,-500.0,9.836e-05,2]
[348366293,1736470240810,-257.68880091,9.836e-05,2]
[348366294,1736470240819,-500.0,9.836e-05,2]
[348366295,1736470240828,-500.0,9.836e-05,2]
[348366296,1736470240838,-500.0,9.836e-05,2]
[348366297,1736470240847,-1104.7,9.836e-05,2]
[348366298,1736470240856,-500.0,9.836e-05,2]
[348366299,1736470240865,-500.0,9.836e-05,2]
[348366300,1736470240874,-500.0,9.836e-05,2]
[348366301,1736470240883,-882.3,9.836e-05,2]
[348366302,1736470240892,-500.0,9.836e-05,2]
[348366303,1736470240902,-500.0,9.836e-05,2]
[348366304,1736470240911,-523.52,9.836e-05,2]
[348366305,1736470240920,-500.0,9.836e-05,2]
[348366306,1736470240929,-500.0,9.836e-05,2]
[348366307,1736470240938,-541.1,9.836e-05,2]
[348366308,1736470240947,-500.0,9.836e-05,2]
[348366309,1736470240957,-500.0,9.836e-05,2]
[348366310,1736470240966,-500.0,9.836e-05,2]
[348366311,1736470240976,-589.87,9.836e-05,2]
[348366312,1736470240985,-500.0,9.836e-05,2]
[348366313,1736470240994,-500.0,9.836e-05,2]
[348366314,1736470241004,-500.0,9.836e-05,2]
[348366315,1736470241014,-649.88,9.836e-05,2]
[348366316,1736470241024,-500.0,9.836e-05,2]
[348366317,1736470241036,-639.05,9.836e-05,2]
[348366318,1736470241046,-500.0,9.836e-05,2]
[348366319,1736470241055,-500.0,9.836e-05,2]
[348366320,1736470241064,-809.26,9.836e-05,2]
[348366321,1736470241072,-500.0,9.836e-05,2]
[348366322,1736470241081,-557.04,9.836e-05,2]
[348366323,1736470241091,-500.0,9.836e-05,2]
[348366324,1736470241099,-561.59,9.836e-05,2]
[348366325,1736470241108,-500.0,9.836e-05,2]
[348366326,1736470241118,-649.68,9.836e-05,2]
[348366327,1736470241127,-500.0,9.836e-05,2]
[348366328,1736470241135,-500.0,9.836e-05,2]
[348366329,1736470241144,-521.88,9.836e-05,2]
[348366330,1736470241154,-500.0,9.836e-05,2]
[348366331,1736470241163,-500.0,9.836e-05,2]
[348366332,1736470241173,-706.51,9.836e-05,2]
[348366333,1736470241182,-500.0,9.836e-05,2]
[348366334,1736470241191,-500.0,9.836e-05,2]
[348366335,1736470241200,-500.0,9.836e-05,2]
[348366336,1736470241209,-534.31,9.836e-05,2]
[348366337,1736470241219,-500.0,9.836e-05,2]
[348366338,1736470241229,-1335.55,9.836e-05,2]
[348366339,1736470241238,-500.0,9.836e-05,2]
[348366340,1736470241247,-520.43,9.836e-05,2]
[348366341,1736470241257,-500.0,9.836e-05,2]
[348366342,1736470241266,-639.41,9.836e-05,2]
[348366343,1736470241275,-384.50685346,9.836e-05,2]
[348366344,1736470241284,-500.0,9.836e-05,2]
[348366345,1736470241293,-500.0,9.836e-05,2]
[348366346,1736470241303,-697.28,9.836e-05,2]
[348366347,1736470241314,-1091.83,9.836e-05,2]
[348366348,1736470241323,-500.0,9.836e-05,2]
[348366349,1736470241332,-500.0,9.836e-05,2]
[348366350,1736470241342,-500.0,9.836e-05,2]
[348366351,1736470241351,-500.0,9.836e-05,2]
[348366352,1736470241360,-500.0,9.836e-05,2]
[348366353,1736470241369,-500.0,9.836e-05,2]
[348366354,1736470241378,-500.0,9.836e-05,2]
[348366355,1736470241387,-1391.62,9.836e-05,2]
[348366356,1736470241396,-500.0,9.836e-05,2]
[348366357,1736470241405,-570.99,9.836e-05,2]
[348366358,1736470241414,-500.0,9.836e-05,2]
[348366359,1736470241423,-500.0,9.836e-05,2]
[348366360,1736470241433,-500.0,9.836e-05,2]
[348366361,1736470241442,-500.0,9.836e-05,2]
[348366362,1736470241451,-500.0,9.836e-05,2]
[348366363,1736470241460,-1119.73,9.836e-05,2]
[348366364,1736470241470,-717.37,9.836e-05,2]
[348366365,1736470241479,-500.0,9.836e-05,2]
[348366366,1736470241490,-835.89,9.836e-05,2]
[348366367,1736470241499,-500.0,9.836e-05,2]
[348366368,1736470241508,-2527.36,9.836e-05,2]
[348366369,1736470241517,-2527.36,9.836e-05,2]
[348366370,1736470241527,-500.0,9.836e-05,2]
[348366371,1736470241536,-500.0,9.836e-05,2]
[348366372,1736470241545,-576.57,9.836e-05,2]
[348366373,1736470241555,-595.48,9.836e-05,2]
[348366374,1736470241564,-500.0,9.836e-05,2]
[348366375,1736470241574,-500.0,9.836e-05,2]
[348366376,1736470241583,-500.0,9.836e-05,2]
[348366377,1736470241592,-500.0,9.836e-05,2]
[348366378,1736470241601,-500.0,9.836e-05,2]
[348366379,1736470241610,-500.0,9.836e-05,2]
[348366380,1736470241619,-500.0,9.836e-05,2]
[348366381,1736470241629,-1480.2,9.836e-05,2]
[348366382,1736470241638,-865.41,9.836e-05,2]
[348366383,1736470241647,-500.0,9.836e-05,2]
[348366384,1736470241656,-500.0,9.836e-05,2]
[348366385,1736470241668,-500.0,9.836e-05,2]
[348366386,1736470241677,-500.0,9.836e-05,2]
[348366387,1736470241687,-801.73,9.836e-05,2]
[348366388,1736470241696,-500.0,9.836e-05,2]
[348366389,1736470241705,-500.0,9.836e-05,2]
[348366390,1736470241714,-500.0,9.836e-05,2]
[348366391,1736470241724,-500.0,9.836e-05,2]
[348366392,1736470241733,-375.49487205,9.836e-05,2]
[348366393,1736470241745,-500.0,9.836e-05,2]
[348366394,1736470241754,-500.0,9.836e-05,2]
[348366395,1736470241763,-500.0,9.836e-05,2]
[348366396,1736470241772,-500.0,9.836e-05,2]
[348366397,1736470241781,-500.0,9.836e-05,2]
[348366398,1736470241791,-500.0,9.836e-05,2]
[348366399,1736470241800,-962.62,9.836e-05,2]
[348366400,1736470241808,-500.0,9.836e-05,2]
[348366401,1736470241818,-4813.55,9.836e-05,2]
[348366402,1736470241827,-736.3,9.836e-05,2]
[348366403,1736470241836,-500.0,9.836e-05,2]
[348366404,1736470241845,-500.0,9.836e-05,2]
[348366405,1736470241854,-500.0,9.836e-05,2]
[348366406,1736470241863,-500.0,9.836e-05,2]
[348366407,1736470241872,-500.0,9.836e-05,2]
[348366408,1736470241881,-500.0,9.836e-05,2]
[348366409,1736470241890,-500.0,9.836e-05,2]
[348366410,1736470241899,-500.0,9.836e-05,2]
[348366411,1736470241908,-500.0,9.836e-05,2]
[348366412,1736470241917,-500.0,9.836e-05,2]
[348366413,1736470241927,-500.0,9.836e-05,2]
[348366414,1736470241935,-500.0,9.836e-05,2]
[348366415,1736470241945,-3658.59,9.836e-05,2]
[348366416,1736470241954,-2320.86,9.836e-05,2]
[348366417,1736470241963,-546.43,9.836e-05,2]
[348366418,1736470241972,-500.0,9.836e-05,2]
[348366419,1736470241981,-500.0,9.836e-05,2]
[348366420,1736470241990,-6965.36,9.836e-05,2]
[348366421,1736470241999,-500.0,9.836e-05,2]
[348366422,1736470242009,-500.0,9.836e-05,2]
[348366423,1736470242018,-500.0,9.836e-05,2]
[348366424,1736470242027,-500.0,9.836e-05,2]
[348366425,1736470242035,-500.0,9.836e-05,2]
[348366426,1736470242044,-500.0,9.836e-05,2]
[348366427,1736470242053,-500.0,9.836e-05,2]
[348366428,1736470242062,-500.0,9.836e-05,2]
[348366429,1736470242072,-500.0,9.836e-05,2]
[348366430,1736470242084,-500.0,9.836e-05,2]
[348366431,1736470242094,-500.0,9.836e-05,2]
[348366432,1736470242104,-500.0,9.836e-05,2]
[348366433,1736470242115,-500.0,9.836e-05,2]
[348366434,1736470242127,-500.0,9.836e-05,2]
[348366435,1736470242139,-766.27,9.836e-05,2]
[348366436,1736470242150,-500.0,9.836e-05,2]
[348366437,1736470242160,-1086.86,9.836e-05,2]
[348366438,1736470242170,-500.0,9.836e-05,2]
[348366439,1736470242181,-500.0,9.836e-05,2]
[348366440,1736470242190,-500.0,9.836e-05,2]
[348366441,1736470242199,-500.0,9.836e-05,2]
[348366442,1736470242210,-500.0,9.836e-05,2]
[348366443,1736470242220,-500.0,9.836e-05,2]
[348366444,1736470242230,-500.0,9.836e-05,2]
[348366445,1736470242239,-1120.52,9.836e-05,2]
[348366446,1736470242248,-500.0,9.836e-05,2]
[348366447,1736470242257,-500.0,9.836e-05,2]
[348366448,1736470242268,-1836.75,9.836e-05,2]
[348366449,1736470242277,-500.0,9.836e-05,2]
[348366450,1736470242288,-1263.44,9.836e-05,2]
[348366451,1736470242299,-500.0,9.836e-05,2]
[348366452,1736470242308,-1258.36,9.836e-05,2]
[348366453,1736470242319,-500.0,9.836e-05,2]
[348366454,1736470242329,-500.0,9.836e-05,2]
[348366455,1736470242338,-500.0,9.836e-05,2]
[348366456,1736470242347,-500.0,9.836e-05,2]
[348366457,1736470242356,-696.37,9.836e-05,2]
[348366458,1736470242365,-500.0,9.836e-05,2]
[348366459,1736470242374,-373.59,9.836e-05,2]
[348366460,1736470242383,-500.0,9.836e-05,2]
[348366461,1736470242392,-500.0,9.836e-05,2]
[348366462,1736470242401,-500.0,9.836e-05,2]
[348366463,1736470242410,-500.0,9.836e-05,2]
[348366464,1736470242420,-3530.32,9.836e-05,2]
[348366465,1736470242429,-500.0,9.836e-05,2]
[348366466,1736470242439,-527.75,9.836e-05,2]
[348366467,1736470242448,-533.34562174,9.836e-05,2]
[348366468,1736470242457,-500.0,9.836e-05,2]
[348366469,1736470242466,-500.0,9.836e-05,2]
[348366470,1736470242475,-500.0,9.836e-05,2]
[348366471,1736470242484,-1199.2,9.836e-05,2]
[348366472,1736470242493,-500.0,9.836e-05,2]
[348366473,1736470242504,-500.0,9.836e-05,2]
[348366474,1736470242514,-500.0,9.836e-05,2]
[348366475,1736470242523,-891.09,9.836e-05,2]
[348366476,1736470242532,-500.0,9.836e-05,2]
[348366477,1736470242542,-500.0,9.836e-05,2]
[348366478,1736470242551,-567.88,9.836e-05,2]
[348366479,1736470242561,-500.0,9.836e-05,2]
[348366480,1736470242572,-500.0,9.836e-05,2]
[348366481,1736470242583,-500.0,9.836e-05,2]
[348366482,1736470242593,-799.95,9.836e-05,2]
[348366483,1736470242602,-500.0,9.836e-05,2]
[348366484,1736470242612,-500.0,9.836e-05,2]
[348366485,1736470242622,-535.34,9.836e-05,2]
[348366486,1736470242631,-500.0,9.836e-05,2]
[348366487,1736470242641,-500.0,9.836e-05,2]
[348366488,1736470242650,-500.0,9.836e-05,2]
[348366489,1736470242660,-3357.23,9.836e-05,2]
[348366490,1736470242673,-500.0,9.836e-05,2]
[348366491,1736470242683,-306.78667949,9.836e-05,2]
[348366492,1736470242692,-1743.84,9.836e-05,2]
[348366493,1736470242702,-553.18,9.836e-05,2]
[348366494,1736470242711,-1664.08,9.836e-05,2]
[348366495,1736470242721,-500.0,9.836e-05,2]
[348366496,1736470242730,-500.0,9.836e-05,2]
[348366497,1736470242740,-500.0,9.836e-05,2]
[348366498,1736470242749,-500.0,9.836e-05,2]
[348366499,1736470242759,-847.05,9.836e-05,2]
[348366500,1736470242770,-500.0,9.836e-05,2]
[348366501,1736470242781,-3676.92,9.836e-05,2]
[348366502,1736470242793,-500.0,9.836e-05,2]
[348366503,1736470242803,-500.0,9.836e-05,2]
[348366504,1736470242814,-974.18,9.836e-05,2]
[348366505,1736470242825,-997.91,9.836e-05,2]
[348366506,1736470242835,-621.14,9.836e-05,2]
[348366507,1736470242845,-617.83,9.836e-05,2]
[348366508,1736470242857,-500.0,9.836e-05,2]
[348366509,1736470242869,-500.0,9.836e-05,2]
[348366510,1736470242879,-500.0,9.836e-05,2]
[348366511,1736470242889,-500.0,9.836e-05,2]
[348366512,1736470242899,-500.0,9.836e-05,2]
[348366513,1736470242909,-500.0,9.836e-05,2]
[348366514,1736470242919,-1045.9,9.836e-05,2]
[348366515,1736470242928,-521.57,9.836e-05,2]
[348366516,1736470242937,-500.0,9.836e-05,2]
[348366517,1736470242947,-2665.81,9.836e-05,2]
[348366518,1736470242955,-500.0,9.836e-05,2]
[348366520,1736470242964,-1576.61,9.836e-05,2]
[348366522,1736470242974,-777.94,9.836e-05,2]
[348366523,1736470242983,-500.0,9.836e-05,2]
[348366525,1736470242993,-500.0,9.836e-05,2]
[348366527,1736470243002,-770.87,9.836e-05,2]
[348366528,1736470243012,-500.0,9.836e-05,2]
[348366529,1736470243022,-500.0,9.836e-05,2]
[348366530,1736470243031,-500.0,9.836e-05,2]
[348366532,1736470243041,-212.43793526,9.836e-05,2]
[348366534,1736470243051,-1212.84,9.836e-05,2]
[348366537,1736470243060,-691.14,9.836e-05,2]
[348366539,1736470243069,-500.0,9.836e-05,2]
[348366540,1736470243079,-975.04,9.836e-05,2]
[348366542,1736470243088,-790.72,9.836e-05,2]
[348366544,1736470243099,-500.0,9.836e-05,2]
[348366546,1736470243108,-562.54,9.836e-05,2]
[348366548,1736470243117,-500.0,9.836e-05,2]
[348366550,1736470243128,-748.66,9.836e-05,2]
[348366552,1736470243137,-500.0,9.836e-05,2]
[348366554,1736470243146,-551.39215493,9.836e-05,2]
[348366555,1736470243156,-1649.12,9.836e-05,2]
[348366556,1736470243167,-500.0,9.836e-05,2]
[348366557,1736470243176,-3285.08,9.836e-05,2]
[348366558,1736470243186,-500.0,9.836e-05,2]
[348366559,1736470243196,-1308.03,9.836e-05,2]
[348366560,1736470243207,-805.86,9.836e-05,2]
[348366561,1736470243219,-635.87,9.836e-05,2]
[348366562,1736470243228,-616.53,9.836e-05,2]
[348366563,1736470243239,-500.0,9.836e-05,2]
[348366564,1736470243249,-500.0,9.836e-05,2]
[348366565,1736470243259,-500.0,9.836e-05,2]
[348366566,1736470243269,-780.14,9.836e-05,2]
[348366567,1736470243280,-500.0,9.836e-05,2]
[348366568,1736470243291,-1175.58,9.836e-05,2]
[348366569,1736470243302,-500.0,9.836e-05,2]
[348366570,1736470243311,-1019.31,9.836e-05,2]
[348366571,1736470243322,-500.0,9.836e-05,2]
[348366572,1736470243331,-1428.77427305,9.836e-05,2]
[348366573,1736470243374,-861.64145334,9.836e-05,2]
[348366574,1736470243406,-636.67427361,9.836e-05,2]
[348366575,1736470243416,-500.0,9.837e-05,2]
[348366576,1736470243426,-424.64505787,9.837e-05,2]
[348366577,1736470243438,-75.35494213,9.837e-05,2]
[348366578,1736470243448,-728.59,9.837e-05,2]
[348366579,1736470243457,-296.87205787,9.837e-05,2]
[348366582,1736470243491,-500.0,9.835e-05,2]
[348366584,1736470243500,-203.12794213,9.837e-05,2]
[348366586,1736470243510,-604.01,9.837e-05,2]
[348366588,1736470243520,-500.0,9.837e-05,2]
[348366590,1736470243529,-849.36,9.837e-05,2]
[348366592,1736470243539,-698.84,9.837e-05,2]
[348366594,1736470243548,-758.73,9.837e-05,2]
[348366596,1736470243558,-556.06,9.837e-05,2]
[348366598,1736470243567,-500.0,9.837e-05,2]
[348366600,1736470243577,-500.0,9.837e-05,2]
[348366602,1736470243587,-504.0,9.837e-05,2]
[348366604,1736470243597,-500.0,9.837e-05,2]
[348366606,1736470243607,-500.0,9.837e-05,2]
[348366608,1736470243617,-679.08,9.837e-05,2]
[348366610,1736470243626,-500.0,9.837e-05,2]
[348366612,1736470243636,-567.13,9.837e-05,2]
[348366614,1736470243645,-500.0,9.837e-05,2]
[348366616,1736470243655,-500.0,9.837e-05,2]
[348366618,1736470243667,-500.0,9.837e-05,2]
[348366620,1736470243684,-631.85024488,9.837e-05,2]
[348366622,1736470243695,-785.82,9.837e-05,2]
[348366624,1736470243704,-734.14,9.837e-05,2]
[348366642,1736470243921,-500.0,9.837e-05,2]
[348366643,1736470243931,-563.2,9.837e-05,2]
[348366644,1736470243940,-737.1,9.837e-05,2]
[348366645,1736470243950,-500.0,9.837e-05,2]
[348366646,1736470243959,-500.0,9.837e-05,2]
[348366647,1736470243969,-500.0,9.837e-05,2]
[348366648,1736470243978,-500.0,9.837e-05,2]
[348366649,1736470243987,-1038.93,9.837e-05,2]
[348366650,1736470243997,-709.14,9.837e-05,2]
[348366651,1736470244006,-500.0,9.837e-05,2]
[348366652,1736470244015,-500.0,9.837e-05,2]
[348366653,1736470244024,-500.0,9.837e-05,2]
[348366654,1736470244034,-502.19555024,9.837e-05,2]
[348366655,1736470244043,-500.0,9.837e-05,2]
[348366656,1736470244053,-500.0,9.837e-05,2]
[348366657,1736470244063,-681.42,9.837e-05,2]
[348366658,1736470244074,-680.51,9.837e-05,2]
[348366659,1736470244084,-208.06165584,9.837e-05,2]
[348366660,1736470244094,-500.0,9.837e-05,2]
[348366661,1736470244104,-523.34,9.837e-05,2]
[348366662,1736470244114,-500.0,9.837e-05,2]
[348366663,1736470244124,-500.0,9.837e-05,2]
[348366664,1736470244133,-692.76,9.837e-05,2]
[348366665,1736470244143,-500.0,9.837e-05,2]
[348366666,1736470244153,-500.0,9.837e-05,2]
[348366667,1736470244163,-736.42,9.837e-05,2]
[348366668,1736470244171,-500.0,9.837e-05,2]
[348366669,1736470244181,-500.0,9.837e-05,2]
[348366670,1736470244191,-500.0,9.837e-05,2]
[348366671,1736470244201,-500.0,9.837e-05,2]
[348366672,1736470244211,-568.79,9.837e-05,2]
[348366673,1736470244221,-500.0,9.837e-05,2]
[348366674,1736470244231,-500.0,9.837e-05,2]
[348366675,1736470244240,-749.46,9.837e-05,2]
[348366676,1736470244249,-729.3,9.837e-05,2]
[348366677,1736470244258,-521.2,9.837e-05,2]
[348366678,1736470244268,-500.0,9.837e-05,2]
[348366679,1736470244278,-500.0,9.837e-05,2]
[348366680,1736470244288,-599.25,9.837e-05,2]
[348366681,1736470244297,-500.0,9.837e-05,2]
[348366682,1736470244307,-681.93,9.837e-05,2]
[348366683,1736470244316,-723.13,9.837e-05,2]
[348366684,1736470244326,-500.0,9.837e-05,2]
[348366685,1736470244335,-503.07,9.837e-05,2]
[348366686,1736470244345,-500.0,9.837e-05,2]
[348366687,1736470244354,-500.0,9.837e-05,2]
[348366688,1736470244363,-605.23,9.837e-05,2]
[348366689,1736470244373,-1479.01,9.837e-05,2]
[348366690,1736470244383,-500.0,9.837e-05,2]
[348366691,1736470244393,-500.0,9.837e-05,2]
[348366692,1736470244404,-596.65,9.837e-05,2]
[348366693,1736470244414,-2669.04,9.837e-05,2]
[348366694,1736470244423,-1634.91,9.837e-05,2]
[348366695,1736470244433,-656.52,9.837e-05,2]
[348366696,1736470244444,-516.57,9.837e-05,2]
[348366697,1736470244453,-503.9,9.837e-05,2]
[348366698,1736470244462,-610.0,9.837e-05,2]
[348366699,1736470244471,-457.27401414,9.837e-05,2]
[348366700,1736470244484,-118.71598586,9.837e-05,2]
[348366701,1736470244493,-500.0,9.837e-05,2]
[348366702,1736470244503,-2520.38,9.837e-05,2]
[348366703,1736470244512,-2036.32,9.837e-05,2]
[348366704,1736470244521,-816.85,9.837e-05,2]
[348366705,1736470244531,-818.88,9.837e-05,2]
[348366706,1736470244542,-905.88,9.837e-05,2]
[348366707,1736470244553,-541.32,9.837e-05,2]
[348366708,1736470244563,-6597.83,9.837e-05,2]
[348366709,1736470244573,-848.62,9.837e-05,2]
[348366710,1736470244582,-779.22,9.837e-05,2]
[348366711,1736470244592,-688.45,9.837e-05,2]
[348366712,1736470244602,-639.35,9.837e-05,2]
[348366713,1736470244611,-524.77,9.837e-05,2]
[348366714,1736470244620,-1310.86,9.837e-05,2]
[348366715,1736470244629,-500.0,9.837e-05,2]
[348366716,1736470244639,-928.44,9.837e-05,2]
[348366717,1736470244649,-824.34,9.837e-05,2]
[348366718,1736470244658,-500.0,9.837e-05,2]
[348366719,1736470244674,-1209.21,9.837e-05,2]
[348366720,1736470244684,-611.28,9.837e-05,2]
[348366721,1736470244694,-508.93,9.837e-05,2]
[348366722,1736470244703,-922.06,9.837e-05,2]
[348366723,1736470244714,-719.36,9.837e-05,2]
[348366724,1736470244725,-1009.9,9.837e-05,2]
[348366725,1736470244734,-500.0,9.837e-05,2]
[348366726,1736470244744,-908.93,9.837e-05,2]
[348366727,1736470244754,-576.36,9.837e-05,2]
[348366728,1736470244764,-1505.24,9.837e-05,2]
[348366729,1736470244774,-676.4,9.837e-05,2]
[348366730,1736470244784,-500.0,9.837e-05,2]
[348366731,1736470244794,-553.15,9.837e-05,2]
[348366732,1736470244803,-500.0,9.837e-05,2]
[348366733,1736470244813,-616.58,9.837e-05,2]
[348366734,1736470244822,-960.85,9.837e-05,2]
[348366735,1736470244832,-549.64,9.837e-05,2]
[348366736,1736470244842,-1044.03,9.838e-05,2]
[348366737,1736470244852,-1410.28,9.838e-05,2]
[348366738,1736470244861,-1427.89,9.838e-05,2]
[348366739,1736470244871,-2034.74,9.838e-05,2]
[348366740,1736470244882,-1458.31,9.838e-05,2]
[348366741,1736470244891,-4476.2,9.838e-05,2]
[348366742,1736470244901,-1782.26,9.838e-05,2]
[348366743,1736470244910,-2550.3,9.838e-05,2]
[348366744,1736470244919,-1537.58,9.838e-05,2]
[348366745,1736470244928,-1781.25,9.838e-05,2]
[348366746,1736470244938,-500.0,9.838e-05,2]
[348366747,1736470244947,-1032.64,9.838e-05,2]
[348366748,1736470244956,-2614.9,9.838e-05,2]
[348366749,1736470244966,-1132.19,9.838e-05,2]
[348366750,1736470244976,-1042.61,9.838e-05,2]
[348366751,1736470244986,-1090.6,9.838e-05,2]
[348366752,1736470244995,-1054.77,9.838e-05,2]
[348366753,1736470245005,-500.0,9.838e-05,2]
[348366754,1736470245015,-1570.7,9.838e-05,2]
[348366755,1736470245025,-2917.44,9.838e-05,2]
[348366756,1736470245034,-788.08,9.838e-05,2]
[348366757,1736470245043,-612.32,9.838e-05,2]
[348366758,1736470245052,-1135.71,9.838e-05,2]
[348366759,1736470245062,-972.13,9.838e-05,2]
[348366760,1736470245071,-1837.69,9.838e-05,2]
[348366761,1736470245081,-41658.57289308,9.97e-05,2]
[348366762,1736470245093,-34256.99027544,9.97e-05,2]
[348366763,1736470245105,-4988.39474442,9.971e-05,2]
[348366764,1736470245115,-19991.11495974,9.972e-05,2]
[348366765,1736470245129,-55924.44820878,9.972e-05,2]
[348366766,1736470245140,-4988.39474442,9.973e-05,2]